fUSD/lending_fUSD_20240514
["ID","MTS","AMOUNT","RATE_DAILY","PERIOD"]
[326990108,1715688647575,-500.0,0.00012999,2]
[326990109,1715688647586,-500.0,0.00012999,2]
[326990110,1715688647596,-500.0,0.00012999,2]
[326990111,1715688647608,-232.54,0.00012999,2]
[326990112,1715688647622,-221.69,0.00012999,2]
[326990113,1715688647633,-500.0,0.00012999,2]
[326990114,1715688647644,-500.0,0.00012999,2]
[326990115,1715688647655,-500.0,0.00012999,2]
[326990116,1715688647666,-82.66818195,0.00012999,2]
[326990117,1715688647924,-407.2233508,0.00012999,2]
[326990118,1715688648153,-10.10846725,0.00012999,2]
[326990119,1715688648164,-214.14,0.00012999,2]
[326990120,1715688648174,-706.30356375,0.00012999,2]
[326990121,1715688648187,-2393.21776465,0.00012999,2]
[326990122,1715688648198,-500.0,0.00012999,2]
[326990123,1715688648209,-96.71268334,0.00012999,2]
[326990124,1715688648222,-403.28731666,0.00012999,2]
[326990125,1715688648233,-500.0,0.00012999,2]
[326990126,1715688648243,-500.0,0.00012999,2]
[326990127,1715688648254,-188.58,0.00012999,2]
[326990128,1715688648265,-179.790704,0.00012999,2]
[326990129,1715688648275,-179.790704,0.00012999,2]
[326990130,1715688648286,-12.41911273,0.00012999,2]
[326990131,1715688648340,-374.4911271,0.00012999,2]
[326990132,1715688648354,-113.08976017,0.00012999,2]
[326990133,1715688648365,-327.90261232,0.00012999,2]
[326990134,1715688648378,-172.09738768,0.00012999,2]
[326990135,1715688648389,-861.96,0.00012999,2]
[326990136,1715688648400,-500.0,0.00012999,2]
[326990137,1715688648410,-403.53742352,0.00012999,2]
[326990138,1715688648423,-96.46257648,0.00012999,2]
[326990139,1715688648434,-861.96,0.00012999,2]
[326990140,1715688648444,-500.0,0.00012999,2]
[326990141,1715688648455,-500.0,0.00012999,2]
[326990142,1715688648466,-500.0,0.00012999,2]
[326990143,1715688648476,-861.96,0.00012999,2]
[326990144,1715688648486,-500.0,0.00012999,2]
[326990145,1715688648495,-500.0,0.00012999,2]
[326990146,1715688648504,-441.24381846,0.00012999,2]
[326990147,1715688648515,-420.71618154,0.00012999,2]
[326990148,1715688648525,-500.0,0.00012999,2]
[326990149,1715688648535,-488.5,0.00012999,2]
[326990150,1715688648544,-861.96,0.00012999,2]
[326990151,1715688648553,-500.0,0.00012999,2]
[326990152,1715688648562,-861.96,0.00012999,2]
[326990153,1715688648571,-500.0,0.00012999,2]
[326990154,1715688648580,-861.96,0.00012999,2]
[326990155,1715688648590,-500.0,0.00012999,2]
[326990156,1715688648599,-861.96,0.00012999,2]
[326990157,1715688648608,-461.66,0.00012999,2]
[326990158,1715688648621,-861.96,0.00012999,2]
[326990159,1715688648630,-861.96,0.00012999,2]
[326990160,1715688648639,-861.96,0.00012999,2]
[326990161,1715688648650,-380.72929754,0.00012999,2]
[326990162,1715688648662,-481.23070246,0.00012999,2]
[326990163,1715688648671,-861.96,0.00012999,2]
[326990164,1715688648680,-82.18860472,0.00012999,2]
[326990165,1715688648693,-779.77139528,0.00012999,2]
[326990166,1715688648702,-861.96,0.00012999,2]
[326990167,1715688648711,-861.96,0.00012999,2]
[326990168,1715688648720,-500.0,0.00012999,2]
[326990169,1715688649000,-107.82031934,0.00012999,2]
[326990170,1715688649027,-754.13968066,0.00012999,2]
[326990171,1715688649039,-500.0,0.00012999,2]
[326990172,1715688649048,-861.96,0.00012999,2]
[326990173,1715688649057,-500.0,0.00012999,2]
[326990174,1715688649067,-861.96,0.00012999,2]
[326990175,1715688649076,-500.0,0.00012999,2]
[326990176,1715688649085,-861.96,0.00012999,2]
[326990177,1715688649094,-426.81,0.00012999,2]
[326990178,1715688649104,-861.96,0.00012999,2]
[326990179,1715688649113,-861.96,0.00012999,2]
[326990180,1715688649122,-179.790704,0.00012999,2]
[326990181,1715688649131,-179.790704,0.00012999,2]
[326990182,1715688649141,-172.403581,0.00012999,2]
[326990183,1715688649151,-63.86422234,0.00012999,2]
[326990184,1715688649164,-108.53935866,0.00012999,2]
[326990185,1715688649174,-172.403581,0.00012999,2]
[326990186,1715688649184,-57.78404136,0.00012999,2]
[326990187,1715688649198,-114.61953964,0.00012999,2]
[326990188,1715688649208,-172.403581,0.00012999,2]
[326990189,1715688649218,-172.403581,0.00012999,2]
[326990190,1715688649228,-250.08583086,0.00012999,2]
[326990191,1715688649269,-335.70453274,0.00012999,2]
[326990192,1715688649278,-5111.68791129,0.00013,2]
[326990193,1715688649290,-1310.42936115,0.00013,2]
[326990194,1715688649451,-673.88867996,0.00012998,2]
[326990195,1715688649462,-3399.39625553,0.00012998,2]
[326990196,1715688649473,-324.23779872,0.00012998,2]
[326990197,1715688649488,-2013.25,0.00012998,2]
[326990198,1715688649499,-2192.31003432,0.00012998,2]
[326990199,1715688649517,-440.2147745,0.00012998,2]
[326990200,1715688649528,-295.47578606,0.00012998,2]
[326990201,1715688649540,-3309.09799268,0.00012998,2]
[326990202,1715688649549,-261.04096636,0.00013,2]
[326990203,1715688649559,-611.312598,0.00013,2]
[326990204,1715688649571,-263.57856227,0.00013,2]
[326990205,1715688649582,-585.2702069,0.00013,2]
[326990206,1715688649597,-2118.30271669,0.00013,2]
[326990207,1715688649609,-49220.75682057,0.00013,2]
[326990208,1715688649622,-372.33865253,0.00013,2]
[326990209,1715688707744,1008.13,0.00018,30]
[326990210,1715688818875,2000.0,0.000189,30]
[326990211,1715688819463,2917.030143,0.0001891,30]
[326990217,1715689422720,150.0,0.000189,30]
[326990233,1715689832077,-782.26025222,0.00011066,2]
[326990234,1715689832088,-370.90762048,0.00011066,2]
[326990235,1715689832098,-229.14528577,0.00011067,2]
[326990236,1715689832107,-1213.61919427,0.00011166,2]
[326990237,1715689832123,-882.90837981,0.00011167,2]
[326990238,1715689832132,-239.38744252,0.00011167,2]
[326990239,1715689832141,-938.41528503,0.00011272,2]
[326990240,1715689832150,-150.0,0.00011499,2]
[326990241,1715689832160,-3420.94188863,0.000115,2]
[326990242,1715689832169,-773.13,0.00011503,2]
[326990243,1715689832178,-1392.39,0.00011507,2]
[326990244,1715689832186,-1668.78,0.00011509,2]
[326990245,1715689832196,-269.03149191,0.00011509,2]
[326990246,1715689832207,-230.95850809,0.00011509,2]
[326990247,1715689832216,-1500.0,0.00011523,2]
[326990248,1715689832225,-250.0,0.00011561,2]
[326990249,1715689832235,-150.0,0.00011562,2]
[326990250,1715689832244,-180.0,0.00011562,2]
[326990251,1715689832253,-55.74976798,0.00011578,2]
[326990252,1715689832265,-194.25023202,0.00011578,2]
[326990253,1715689832275,-194.5,0.00011604,2]
[326990254,1715689832284,-856.0,0.00011991,2]
[326990255,1715689832294,-177.5,0.0001203,2]
[326990256,1715689832304,-220.770376,0.00012358,2]
[326990257,1715689832314,-197.71983,0.00012358,2]
[326990258,1715689832324,-210.0,0.00012649,2]
[326990259,1715689832334,-1000.0,0.000127,2]
[326990260,1715689832344,-1376.98580965,0.0001275,2]
[326990261,1715689832353,-1563.60941232,0.00012819,2]
[326990262,1715689832370,-175.63691096,0.00012869,2]
[326990263,1715689832379,-200.0,0.00012896,2]
[326990264,1715689832392,-188.59770756,0.00012899,2]
[326990265,1715689832401,-2186.07411638,0.00012899,2]
[326990266,1715689832410,-2186.0741163,0.00012899,2]
[326990267,1715689832419,-2186.0741163,0.00012899,2]
[326990268,1715689832428,-2186.0741163,0.00012899,2]
[326990269,1715689832437,-2186.0741163,0.00012899,2]
[326990270,1715689832446,-2186.0741163,0.00012899,2]
[326990271,1715689832455,-2186.0741163,0.000129,2]
[326990272,1715689832463,-2186.0741163,0.000129,2]
[326990273,1715689832472,-2186.0741163,0.000129,2]
[326990274,1715689832481,-2186.0741163,0.000129,2]
[326990276,1715689832490,-2186.0741163,0.000129,2]
[326990277,1715689832499,-5939.9276,0.000129,2]
[326990279,1715689832508,-24780.94904215,0.000129,2]
[326990281,1715689832546,-533.69164055,0.000129,2]
[326990282,1715689832558,-8058.4669173,0.000129,2]
[326990283,1715689832567,-330.98298427,0.000129,2]
[326990284,1715689832577,-97.21849404,0.000129,2]
[326990285,1715689832589,-91.37921352,0.000129,2]
[326990286,1715689832598,-256.66966771,0.000129,2]
[326990287,1715689832609,-1929.40444859,0.000129,2]
[326990288,1715689832625,-3192.48821988,0.00012985,2]
[326990289,1715689832634,-166.2,0.00012987,2]
[326990290,1715689832643,-166.2,0.00012989,2]
[326990291,1715689832652,-500.0,0.00012995,2]
[326990292,1715689832661,-1422.64,0.00012995,2]
[326990293,1715689832671,-500.0,0.00012995,2]
[326990294,1715689832680,-500.0,0.00012995,2]
[326990295,1715689832689,-500.0,0.00012995,2]
[326990296,1715689832698,-500.0,0.00012995,2]
[326990297,1715689832708,-500.0,0.00012995,2]
[326990298,1715689832718,-1564.21,0.00012995,2]
[326990299,1715689832727,-14946.50179827,0.00012996,2]
[326990300,1715689832750,-81892.3786057,0.00012996,2]
[326990301,1715689832761,-2168.0,0.00012996,2]
[326990302,1715689832783,-756.27288357,0.00012996,2]
[326990303,1715689832794,-304.30786665,0.00012996,2]
[326990304,1715689832805,-1514.6585,0.00012996,2]
[326990317,1715689838086,-500.0,0.00012995,2]
[326990318,1715689838097,-11827.392,0.00012996,2]
[326990319,1715689838110,-9402.13629999,0.00012996,2]
[326990320,1715689838221,-6116.53369339,0.00012996,2]
[326990321,1715689838234,-12089.70965935,0.00012996,2]
[326990322,1715689838246,-500.0,0.00012996,2]
[326990323,1715689838257,-500.0,0.00012996,2]
[326990324,1715689838267,-661.15,0.00012996,2]
[326990325,1715689838277,-500.0,0.00012996,2]
[326990326,1715689838287,-500.0,0.00012996,2]
[326990327,1715689838298,-500.0,0.00012996,2]
[326990328,1715689838308,-500.0,0.00012996,2]
[326990329,1715689838319,-500.0,0.00012996,2]
[326990330,1715689838329,-500.0,0.00012996,2]
[326990331,1715689838339,-500.0,0.00012996,2]
[326990332,1715689838348,-500.0,0.00012996,2]
[326990333,1715689838358,-500.0,0.00012996,2]
[326990334,1715689838374,-500.0,0.00012996,2]
[326990335,1715689838384,-500.0,0.00012996,2]
[326990336,1715689838394,-1478.35,0.00012996,2]
[326990337,1715689838404,-500.0,0.00012996,2]
[326990338,1715689838414,-500.0,0.00012996,2]
[326990339,1715689838423,-500.0,0.00012996,2]
[326990340,1715689838434,-500.0,0.00012996,2]
[326990341,1715689838443,-500.0,0.00012996,2]
[326990342,1715689838453,-500.0,0.00012996,2]
[326990343,1715689838463,-500.0,0.00012996,2]
[326990344,1715689838472,-461.9,0.00012996,2]
[326990345,1715689838482,-500.0,0.00012996,2]
[326990346,1715689838492,-500.0,0.00012996,2]
[326990347,1715689838502,-500.0,0.00012996,2]
[326990348,1715689838515,-500.0,0.00012996,2]
[326990349,1715689838525,-500.0,0.00012996,2]
[326990350,1715689838536,-160.0,0.00012997,2]
[326990351,1715689838547,-231.06136771,0.00012997,2]
[326990352,1715689838556,-500.21829973,0.00012997,2]
[326990353,1715689838566,-1455.36,0.00012997,2]
[326990354,1715689838576,-1564.5,0.00012997,2]
[326990355,1715689838586,-1603.59,0.00012997,2]
[326990356,1715689838596,-1939.19,0.00012997,2]
[326990357,1715689838606,-1982.86,0.00012997,2]
[326990358,1715689838619,-500.0,0.00012997,2]
[326990360,1715689838629,-1557.62,0.00012997,2]
[326990362,1715689838639,-1896.63,0.00012997,2]
[326990364,1715689838648,-1605.0,0.00012997,2]
[326990365,1715689838658,-310.47228244,0.00012997,2]
[326990366,1715689838666,-500.0,0.00012997,2]
[326990367,1715689838676,-500.0,0.00012997,2]
[326990368,1715689838686,-783.42,0.00012997,2]
[326990369,1715689838695,-552.31533622,0.00012997,2]
[326990370,1715689838706,-1040.31,0.00012997,2]
[326990371,1715689838715,-500.0,0.00012997,2]
[326990372,1715689838725,-316.74,0.00012997,2]
[326990373,1715689838734,-500.0,0.00012997,2]
[326990374,1715689838743,-500.0,0.00012997,2]
[326990375,1715689838753,-1422.64,0.00012997,2]
[326990376,1715689838763,-500.0,0.00012997,2]
[326990377,1715689838773,-500.0,0.00012997,2]
[326990378,1715689838783,-400.98662219,0.00012997,2]
[326990379,1715689838792,-500.0,0.00012997,2]
[326990380,1715689838801,-500.0,0.00012997,2]
[326990381,1715689838811,-164.53463909,0.00012997,2]
[326990382,1715689838820,-500.0,0.00012997,2]
[326990383,1715689838830,-500.0,0.00012997,2]
[326990384,1715689838839,-500.0,0.00012997,2]
[326990385,1715689838849,-500.0,0.00012997,2]
[326990386,1715689838859,-522.28932815,0.00012998,2]
[326990387,1715689838873,-837.30836618,0.00012998,2]
[326990388,1715689838883,-3087.47726091,0.00012998,2]
[326990389,1715689838892,-1455.36,0.00012998,2]
[326990390,1715689838901,-1564.5,0.00012998,2]
[326990391,1715689838912,-1603.59,0.00012998,2]
[326990392,1715689838921,-1939.19,0.00012998,2]
[326990393,1715689838931,-1982.86,0.00012998,2]
[326990394,1715689838940,-1650.17,0.00012998,2]
[326990395,1715689838950,-1557.62,0.00012998,2]
[326990396,1715689838959,-1518.58,0.00012998,2]
[326990397,1715689838968,-1896.63,0.00012998,2]
[326990398,1715689838978,-1679.65,0.00012998,2]
[326990399,1715689838990,-1885.34,0.00012998,2]
[326990400,1715689839003,-1623.62,0.00012998,2]
[326990401,1715689839014,-1605.0,0.00012998,2]
[326990402,1715689839024,-1993.57,0.00012998,2]
[326990403,1715689839035,-1370.54,0.00012998,2]
[326990404,1715689839047,-1519.47,0.00012998,2]
[326990405,1715689839058,-500.0,0.00012998,2]
[326990406,1715689839068,-500.0,0.00012998,2]
[326990407,1715689839078,-500.0,0.00012998,2]
[326990408,1715689839090,-500.0,0.00012998,2]
[326990409,1715689839101,-783.42,0.00012998,2]
[326990410,1715689839112,-783.42,0.00012998,2]
[326990411,1715689839130,-783.42,0.00012998,2]
[326990412,1715689839140,-1846.91,0.00012998,2]
[326990413,1715689839151,-259.17518725,0.00012998,2]
[326990414,1715689839168,-278.14382276,0.00012998,2]
[326990415,1715689839182,-862.59098999,0.00012998,2]
[326990416,1715689839192,-1040.31,0.00012998,2]
[326990417,1715689839203,-1040.31,0.00012998,2]
[326990418,1715689839214,-486.33875448,0.00012998,2]
[326990419,1715689839247,-553.97124552,0.00012998,2]
[326990420,1715689839258,-500.0,0.00012998,2]
[326990421,1715689839269,-500.0,0.00012998,2]
[326990422,1715689839280,-598.15,0.00012998,2]
[326990423,1715689839291,-506.85,0.00012998,2]
[326990424,1715689839301,-1422.64,0.00012998,2]
[326990425,1715689839313,-538.41,0.00012998,2]
[326990426,1715689839324,-136.25908748,0.00012998,2]
[326990427,1715689839354,-271.0239404,0.00012998,2]
[326990428,1715689839374,-29.68697212,0.00012998,2]
[326990429,1715689839389,-500.0,0.00012998,2]
[326990430,1715689839400,-42.37983695,0.00012998,2]
[326990443,1715689840187,-500.0,0.00012998,2]
[326990444,1715689840197,-169.67,0.00012998,2]
[326990445,1715689840207,-661.15,0.00012998,2]
[326990446,1715689840218,-661.15,0.00012998,2]
[326990447,1715689840229,-661.15,0.00012998,2]
[326990448,1715689840240,-661.15,0.00012998,2]
[326990449,1715689840252,-500.0,0.00012998,2]
[326990450,1715689840262,-500.0,0.00012998,2]
[326990451,1715689840273,-500.0,0.00012998,2]
[326990452,1715689840283,-500.0,0.00012998,2]
[326990453,1715689840294,-500.0,0.00012998,2]
[326990454,1715689840306,-500.0,0.00012998,2]
[326990455,1715689840317,-635.82,0.00012998,2]
[326990456,1715689840328,-500.0,0.00012998,2]
[326990457,1715689840339,-500.0,0.00012998,2]
[326990458,1715689840350,-500.0,0.00012998,2]
[326990459,1715689840359,-500.0,0.00012998,2]
[326990460,1715689840377,-500.0,0.00012998,2]
[326990461,1715689840388,-500.0,0.00012998,2]
[326990462,1715689840398,-500.0,0.00012998,2]
[326990463,1715689840409,-500.0,0.00012998,2]
[326990464,1715689840419,-500.0,0.00012998,2]
[326990465,1715689840429,-500.0,0.00012998,2]
[326990466,1715689840439,-236.16,0.00012998,2]
[326990467,1715689840450,-500.0,0.00012998,2]
[326990468,1715689840461,-500.0,0.00012998,2]
[326990469,1715689840472,-500.0,0.00012998,2]
[326990470,1715689840482,-500.0,0.00012998,2]
[326990471,1715689840492,-500.0,0.00012998,2]
[326990472,1715689840503,-134.73447153,0.00012998,2]
[326990473,1715689840529,-169.58552847,0.00012998,2]
[326990474,1715689840538,-369.47730294,0.00012998,2]
[326990475,1715689840562,-180.18269706,0.00012998,2]
[326990476,1715689840572,-500.0,0.00012998,2]
[326990477,1715689840584,-630.76,0.00012998,2]
[326990478,1715689840594,-500.0,0.00012998,2]
[326990479,1715689840605,-500.0,0.00012998,2]
[326990480,1715689840624,-186.47,0.00012998,2]
[326990481,1715689840635,-1609.46,0.00012998,2]
[326990482,1715689840645,-306.46,0.00012998,2]
[326990483,1715689840655,-1478.35,0.00012998,2]
[326990484,1715689840666,-1478.35,0.00012998,2]
[326990485,1715689840676,-1478.35,0.00012998,2]
[326990486,1715689840686,-1478.35,0.00012998,2]
[326990487,1715689840696,-2000.0,0.00012998,2]
[326990488,1715689840707,-500.0,0.00012998,2]
[326990489,1715689840717,-500.0,0.00012998,2]
[326990490,1715689840727,-500.0,0.00012998,2]
[326990491,1715689840739,-500.0,0.00012998,2]
[326990492,1715689840749,-701.99,0.00012998,2]
[326990493,1715689840760,-500.0,0.00012998,2]
[326990495,1715689840770,-500.0,0.00012998,2]
[326990496,1715689840780,-500.0,0.00012998,2]
[326990497,1715689840790,-500.0,0.00012998,2]
[326990498,1715689840800,-397.88914294,0.00012998,2]
[326990499,1715689840810,-500.0,0.00012998,2]
[326990501,1715689840819,-500.0,0.00012998,2]
[326990503,1715689840829,-500.0,0.00012998,2]
[326990505,1715689840839,-500.0,0.00012998,2]
[326990507,1715689840848,-500.0,0.00012998,2]
[326990509,1715689840858,-500.0,0.00012998,2]
[326990511,1715689840872,-293.11,0.00012998,2]
[326990513,1715689840881,-500.0,0.00012998,2]
[326990515,1715689840890,-500.0,0.00012998,2]
[326990517,1715689840899,-500.0,0.00012998,2]
[326990519,1715689840908,-208.74,0.00012998,2]
[326990521,1715689840918,-500.0,0.00012998,2]
[326990523,1715689840926,-500.0,0.00012998,2]
[326990525,1715689840936,-593.9,0.00012998,2]
[326990527,1715689840945,-500.0,0.00012998,2]
[326990529,1715689840954,-500.0,0.00012998,2]
[326990531,1715689840964,-500.0,0.00012998,2]
[326990532,1715689840974,-500.0,0.00012998,2]
[326990534,1715689840984,-500.0,0.00012998,2]
[326990535,1715689840999,-500.0,0.00012998,2]
[326990537,1715689841008,-500.0,0.00012998,2]
[326990538,1715689841017,-430.4,0.00012998,2]
[326990540,1715689841027,-357.17,0.00012998,2]
[326990541,1715689841040,-500.0,0.00012998,2]
[326990543,1715689841049,-500.0,0.00012998,2]
[326990544,1715689841059,-500.0,0.00012998,2]
[326990546,1715689841068,-500.0,0.00012998,2]
[326990547,1715689841078,-500.0,0.00012998,2]
[326990549,1715689841088,-500.0,0.00012998,2]
[326990550,1715689841096,-396.05,0.00012998,2]
[326990552,1715689841105,-500.0,0.00012998,2]
[326990553,1715689841119,-500.0,0.00012998,2]
[326990555,1715689841128,-500.0,0.00012998,2]
[326990557,1715689841137,-500.0,0.00012998,2]
[326990558,1715689841147,-500.0,0.00012998,2]
[326990559,1715689841156,-531.01,0.00012998,2]
[326990561,1715689841165,-480.1,0.00012998,2]
[326990562,1715689841174,-500.0,0.00012998,2]
[326990564,1715689841184,-500.0,0.00012998,2]
[326990566,1715689841193,-500.0,0.00012998,2]
[326990567,1715689841202,-500.0,0.00012998,2]
[326990569,1715689841212,-500.0,0.00012998,2]
[326990570,1715689841222,-211.94138632,0.00012998,2]
[326990572,1715689841232,-500.0,0.00012998,2]
[326990574,1715689841242,-500.0,0.00012998,2]
[326990575,1715689841252,-187.0,0.00012998,2]
[326990577,1715689841262,-1564.21,0.00012998,2]
[326990578,1715689841271,-1564.21,0.00012998,2]
[326990580,1715689841281,-1564.21,0.00012998,2]
[326990582,1715689841291,-1564.21,0.00012998,2]
[326990583,1715689841300,-500.0,0.00012998,2]
[326990585,1715689841311,-468.16,0.00012998,2]
[326990587,1715689841321,-468.63229088,0.00012999,2]
[326990588,1715689841330,-1455.36,0.00012999,2]
[326990590,1715689841340,-1455.36,0.00012999,2]
[326990591,1715689841350,-1455.36,0.00012999,2]
[326990593,1715689841360,-1455.36,0.00012999,2]
[326990595,1715689841375,-1455.36,0.00012999,2]
[326990596,1715689841385,-1455.36,0.00012999,2]
[326990598,1715689841395,-1455.36,0.00012999,2]
[326990600,1715689841404,-1455.36,0.00012999,2]
[326990601,1715689841413,-1455.36,0.00012999,2]
[326990603,1715689841422,-1455.36,0.00012999,2]
[326990605,1715689841432,-1455.36,0.00012999,2]
[326990606,1715689841442,-1455.36,0.00012999,2]
[326990608,1715689841452,-1455.36,0.00012999,2]
[326990610,1715689841462,-1455.36,0.00012999,2]
[326990611,1715689841472,-1455.36,0.00012999,2]
[326990613,1715689841481,-1455.36,0.00012999,2]
[326990615,1715689841491,-1455.36,0.00012999,2]
[326990616,1715689841500,-1455.36,0.00012999,2]
[326990618,1715689841509,-1455.36,0.00012999,2]
[326990620,1715689841519,-1455.36,0.00012999,2]
[326990621,1715689841529,-1455.36,0.00012999,2]
[326990623,1715689841539,-1455.42144832,0.00012999,2]
[326990625,1715689841549,-1564.5,0.00012999,2]
[326990626,1715689841559,-1564.5,0.00012999,2]
[326990628,1715689841568,-1564.5,0.00012999,2]
[326990630,1715689841577,-1564.5,0.00012999,2]
[326990631,1715689841587,-1564.5,0.00012999,2]
[326990633,1715689841596,-1564.5,0.00012999,2]
[326990635,1715689841606,-1564.5,0.00012999,2]
[326990636,1715689841622,-1564.5,0.00012999,2]
[326990638,1715689841631,-1564.5,0.00012999,2]
[326990640,1715689841640,-1564.5,0.00012999,2]
[326990641,1715689841649,-1564.5,0.00012999,2]
[326990643,1715689841658,-1564.5,0.00012999,2]
[326990645,1715689841668,-1564.5,0.00012999,2]
[326990646,1715689841678,-1564.5,0.00012999,2]
[326990648,1715689841687,-1564.5,0.00012999,2]
[326990650,1715689841697,-1564.5,0.00012999,2]
[326990651,1715689841707,-1564.5,0.00012999,2]
[326990653,1715689841716,-1564.5,0.00012999,2]
[326990654,1715689841726,-1564.5,0.00012999,2]
[326990656,1715689841736,-1564.5,0.00012999,2]
[326990658,1715689841745,-1564.5,0.00012999,2]
[326990659,1715689841755,-1564.55681433,0.00012999,2]
[326990661,1715689841764,-1603.59,0.00012999,2]
[326990663,1715689841773,-1603.59,0.00012999,2]
[326990664,1715689841783,-1603.59,0.00012999,2]
[326990666,1715689841792,-1603.59,0.00012999,2]
[326990668,1715689841801,-434.99362021,0.00012999,2]
[326990670,1715689841817,-433.019438,0.00012999,2]
[326990704,1715689843150,-368.20071861,0.00012999,2]
[326990729,1715689843382,-367.37622318,0.00012999,2]
[326990733,1715689843393,-121.36171151,0.00012999,2]
[326990745,1715689843464,-1434.8542506,0.00012999,2]
[326990747,1715689843475,-47.37403789,0.00012999,2]
[326990749,1715689843485,-1104.29255781,0.00012999,2]
[326990765,1715689843679,-499.29744219,0.00012999,2]
[326990766,1715689843688,-1603.59,0.00012999,2]
[326990767,1715689843697,-1603.59,0.00012999,2]
[326990769,1715689843707,-1603.59,0.00012999,2]
[326990771,1715689843716,-1603.59,0.00012999,2]
[326990773,1715689843725,-1603.59,0.00012999,2]
[326990775,1715689843735,-1603.59,0.00012999,2]
[326990777,1715689843744,-1603.59,0.00012999,2]
[326990779,1715689843753,-1603.59,0.00012999,2]
[326990781,1715689843763,-1603.59,0.00012999,2]
[326990783,1715689843773,-1603.59,0.00012999,2]
[326990785,1715689843783,-1603.59,0.00012999,2]
[326990787,1715689843792,-1603.59,0.00012999,2]
[326990789,1715689843801,-1603.59,0.00012999,2]
[326990791,1715689843810,-1603.59,0.00012999,2]
[326990793,1715689843820,-1603.75812849,0.00012999,2]
[326990795,1715689843829,-1939.19,0.00012999,2]
[326990797,1715689843839,-1939.19,0.00012999,2]
[326990799,1715689843848,-1939.19,0.00012999,2]
[326990801,1715689843857,-1939.19,0.00012999,2]
[326990803,1715689843870,-1939.19,0.00012999,2]
[326990806,1715689843879,-1939.19,0.00012999,2]
[326990808,1715689843888,-1939.19,0.00012999,2]
[326990809,1715689843897,-1939.19,0.00012999,2]
[326990811,1715689843906,-129.31360432,0.00012999,2]
[326990814,1715689843919,-1809.87639568,0.00012999,2]
[326990816,1715689843928,-1939.19,0.00012999,2]
[326990818,1715689843938,-1939.19,0.00012999,2]
[326990820,1715689843947,-1939.19,0.00012999,2]
[326990822,1715689843957,-1939.19,0.00012999,2]
[326990824,1715689843966,-1939.19,0.00012999,2]
[326990826,1715689843975,-860.79606785,0.00012999,2]
[326990828,1715689843987,-695.22717998,0.00012999,2]
[326990834,1715689844040,-383.16675217,0.00012999,2]
[326990836,1715689844050,-153.67477635,0.00012999,2]
[326990950,1715689846212,-500.0,0.00012995,2]
[326990951,1715689846223,-36.82847478,0.00012996,2]
[326990952,1715689846235,-486.58152522,0.00012996,2]
[326990953,1715689846246,-523.41,0.00012998,2]
[326990954,1715689846255,-523.41,0.00012998,2]
[326990955,1715689846265,-523.41,0.00012998,2]
[326990956,1715689846275,-1020.20847858,0.00012999,2]
[326990957,1715689846287,-765.30674507,0.00012999,2]
[326990958,1715689846297,-1939.19,0.00012999,2]
[326990959,1715689846306,-1939.19,0.00012999,2]
[326990960,1715689846316,-1939.19,0.00012999,2]
[326990961,1715689846326,-1939.19,0.00012999,2]
[326990962,1715689846335,-1939.19,0.00012999,2]
[326990963,1715689846344,-1939.29920147,0.00012999,2]
[326990964,1715689846354,-1982.86,0.00012999,2]
[326990965,1715689846363,-1982.86,0.00012999,2]